bitfinex-derivatives/quotes_BTCF0:USTF0_20250211
["timestamp","ask_amount","ask_price","bid_price","bid_amount"]
[1739310903255,0.2068242,96240.0,96239.0,0.18352684]
[1739310903856,0.2048242,96240.0,96239.0,0.18352684]
[1739310904965,0.1988242,96240.0,96239.0,0.18352684]
[1739310905359,0.2078307,96237.0,96236.0,0.00015586]
[1739310905559,0.2008307,96237.0,96236.0,0.00015586]
[1739310907761,0.2119143,96237.0,96236.0,0.00015586]
[1739310907958,0.0110836,96237.0,96236.0,0.00015586]
[1739310909065,0.2189143,96237.0,96236.0,0.20798866]
[1739310911163,0.2189143,96237.0,96236.0,0.00015586]
[1739310916168,0.2189143,96237.0,96236.0,0.20798866]
[1739310917165,0.0110836,96237.0,96236.0,0.20798866]
[1739310930272,0.2189143,96237.0,96236.0,0.20798866]
[1739310931579,0.26946177,96237.0,96236.0,0.20798866]
[1739310936192,0.05154747,96237.0,96236.0,0.56878866]
[1739310936397,0.00015586,96255.0,96254.0,0.207794]
[1739310936689,0.0103489,96267.0,96265.0,0.2077702]
[1739310936889,0.0103489,96267.0,96265.0,0.2808502]
[1739310937481,0.0103489,96267.0,96266.0,0.2077681]
[1739310937790,0.00015586,96275.0,96274.0,0.2077508]
[1739310940792,0.02115586,96275.0,96274.0,0.2077508]
[1739310943795,0.01415586,96275.0,96274.0,0.2077508]
[1739310943986,0.00515586,96275.0,96274.0,0.2077508]
[1739310945091,0.15533417,96285.0,96274.0,0.2077508]
[1739310945296,0.15533417,96285.0,96284.0,0.2077292]
[1739310945496,0.15533417,96285.0,96284.0,0.2807692]
[1739310945984,0.15533417,96285.0,96284.0,1.7807692]
[1739310946187,0.15533417,96291.0,96284.0,1.57304]
[1739310946390,0.15533417,96291.0,96281.0,0.0516]
[1739310946693,0.36304827,96291.0,96289.0,0.207717]
[1739310946900,0.36304827,96291.0,96290.0,0.2077163]
[1739310947394,0.37849535,96291.0,96290.0,0.2077163]
[1739310947598,0.38749535,96291.0,96290.0,0.2077163]
[1739310948105,0.38849535,96291.0,96290.0,0.2077163]
[1739310948292,0.37949535,96291.0,96290.0,0.2077163]
[1739310948492,0.39349535,96291.0,96290.0,0.2087163]
[1739310949597,0.23816118,96291.0,96290.0,0.2087163]
[1739310949992,0.03044708,96291.0,96290.0,0.2087163]
[1739310952303,0.03044708,96291.0,96290.0,0.3087163]
[1739310954904,0.02,96291.0,96290.0,0.3087163]
[1739310961007,0.001,96291.0,96290.0,0.3077163]
[1739310961809,0.00015586,96294.0,96293.0,0.2077098]
[1739310963404,0.00115586,96294.0,96293.0,0.2077098]
[1739310964614,0.00515586,96294.0,96293.0,0.2087098]
[1739310966015,0.00515586,96294.0,96293.0,0.2816698]
[1739310967615,0.01538534,96294.0,96293.0,0.2816698]
[1739310968407,0.58389304,96294.0,96293.0,0.2087098]
[1739310968606,0.58389304,96294.0,96293.0,0.001]
[1739310973123,0.73922721,96294.0,96293.0,0.001]
[1739310976428,0.58389304,96294.0,96293.0,0.001]
[1739310977223,0.2077141,96291.0,96290.0,0.1]
[1739310978421,0.2077141,96291.0,96290.0,0.101]
[1739310978628,0.2087141,96291.0,96290.0,0.101]
[1739310979641,0.2147141,96291.0,96290.0,0.101]
[1739310979924,0.2137141,96291.0,96290.0,0.101]
[1739310980129,0.2277141,96291.0,96290.0,0.101]
[1739310983023,0.5885141,96291.0,96290.0,0.101]
[1739310987530,0.5745141,96291.0,96290.0,0.102]
[1739310987734,0.5885141,96291.0,96290.0,0.102]
[1739310988332,0.5745141,96291.0,96290.0,0.101]
[1739310988536,0.5895141,96291.0,96290.0,0.102]
[1739310993440,0.3818,96291.0,96290.0,0.3097163]
[1739310994133,0.53730584,96291.0,96290.0,0.3097163]
[1739310994636,0.17650584,96291.0,96290.0,0.3097163]
[1739310996843,0.17650584,96291.0,96290.0,0.6097163]
[1739310997037,0.18582668,96301.0,96300.0,0.2076947]
[1739310997244,0.18582668,96301.0,96300.0,0.2806147]
[1739310997540,0.01041758,96306.0,96305.0,0.2076839]
[1739310997748,0.3608,96308.0,96307.0,0.2076796]
[1739310998042,0.3608,96308.0,96306.0,0.0966]
[1739310998043,0.00155807,96314.0,96306.0,0.0966]
[1739310998247,0.2076117,96339.0,96331.0,0.207627]
[1739310998448,0.3608,96341.0,96331.0,0.207627]
[1739310998638,0.3608,96341.0,96336.0,0.2076171]
[1739310999343,0.22385816,96337.0,96336.0,0.2076171]
[1739310999537,0.23444997,96337.0,96336.0,0.2076171]
[1739311000842,0.23744997,96337.0,96336.0,0.2086171]
[1739311001043,0.01359181,96337.0,96336.0,0.2096171]
[1739311001433,0.01359181,96337.0,96336.0,0.2824971]
[1739311001434,1e-08,96337.0,96336.0,0.2824971]
[1739311003848,0.00015578,96346.0,96345.0,0.2075977]
[1739311004040,0.00015578,96346.0,96345.0,0.5683977]
[1739311005039,8e-08,96346.0,96345.0,0.5683977]
[1739311005238,0.1471,96384.0,96357.0,0.2075719]
[1739311005437,0.1471,96384.0,96357.0,0.6412519]
[1739311005438,0.12436256,96380.0,96357.0,0.6412519]
[1739311006346,0.00010191,96367.0,96357.0,0.6412519]
[1739311006548,0.00555739,96358.0,96357.0,0.6422519]
[1739311006942,0.00955739,96358.0,96357.0,0.6432519]
[1739311010244,0.12436256,96380.0,96357.0,0.6432519]
[1739311010245,0.3608,96401.0,96386.0,0.2075094]
[1739311010541,0.37134885,96387.0,96386.0,0.2075094]
[1739311011642,0.37934885,96387.0,96386.0,0.2095094]
[1739311015244,0.58685615,96387.0,96386.0,0.2095094]
[1739311015445,0.22605615,96387.0,96386.0,0.2095094]
[1739311021449,0.22205615,96387.0,96386.0,0.2085094]
[1739311021650,0.22205615,96387.0,96386.0,0.2095094]
[1739311021950,0.21905615,96387.0,96386.0,0.2095094]
[1739311022853,0.21905615,96387.0,96386.0,0.2085094]
[1739311023046,0.21905615,96387.0,96386.0,0.001]
[1739311023556,0.01154885,96387.0,96379.0,0.0016]
[1739311023850,0.2075266,96378.0,96377.0,0.00015569]
[1739311024059,0.3608,96380.0,96359.0,0.2075654]
[1739311024255,0.3608,96367.0,96361.0,0.2075632]
[1739311024450,0.2075625,96362.0,96361.0,0.2075632]
[1739311026460,0.2085625,96362.0,96361.0,0.2075632]
[1739311027955,0.21927006,96362.0,96361.0,0.2075632]
[1739311028464,0.21827006,96362.0,96361.0,0.2075632]
[1739311028660,0.21927006,96362.0,96361.0,0.2075632]
[1739311029360,0.01170756,96362.0,96352.0,0.00015569]
[1739311029663,0.2075805,96353.0,96352.0,0.20773829]
[1739311031362,0.2075805,96353.0,96352.0,0.00015569]
[1739311032259,0.2085805,96353.0,96352.0,0.00015569]
[1739311032461,0.2075848,96351.0,96350.0,0.00155665]
[1739311035354,0.22045445,96351.0,96350.0,0.00155665]
[1739311036766,0.22049484,96351.0,96350.0,0.00155665]
[1739311037162,0.58129484,96351.0,96350.0,0.00155665]
[1739311038667,0.207602,96343.0,96342.0,0.2076041]
[1739311039655,0.2076042,96342.0,96341.0,0.00015569]
[1739311039966,0.6152042,96342.0,96341.0,0.00015569]
[1739311040866,0.6132042,96342.0,96341.0,0.00715569]
[1739311041469,0.6132042,96342.0,96341.0,0.00915569]
[1739311045173,0.2524042,96342.0,96341.0,0.00915569]
[1739311045673,0.3544042,96342.0,96341.0,0.00915569]
[1739311049869,0.1548,96342.0,96328.0,0.3608]
[1739311050074,0.3608,96335.0,96320.0,0.00155714]
[1739311050379,0.2076494,96321.0,96320.0,0.00155714]
[1739311050967,0.1926494,96321.0,96320.0,0.00155714]
[1739311051169,0.1866494,96321.0,96320.0,0.00155714]
[1739311051672,0.1866494,96321.0,96320.0,0.00855714]
[1739311052476,0.19997826,96321.0,96320.0,0.00855714]
[1739311052873,0.19997826,96321.0,96320.0,0.01955714]
[1739311053179,0.20097826,96321.0,96320.0,0.01955714]
[1739311055877,0.2076688,96312.0,96311.0,0.00015569]
[1739311056081,0.1076688,96312.0,96311.0,0.00015569]
[1739311058069,0.1086688,96312.0,96311.0,0.00015569]
[1739311058767,0.1096688,96312.0,96311.0,0.00015569]
[1739311062281,0.002,96312.0,96311.0,0.00015569]
[1739311062481,0.002,96312.0,96311.0,0.20782669]
[1739311068388,0.2096688,96312.0,96311.0,0.20782669]
[1739311071882,0.002,96312.0,96311.0,0.20782669]
[1739311073886,0.2096688,96312.0,96311.0,0.00015569]
[1739311074084,0.207699,96298.0,96297.0,0.07272]
[1739311074285,0.207699,96298.0,96292.0,0.3608]
[1739311074591,0.12436256,96307.0,96292.0,0.6412308]
[1739311074787,0.2077024,96297.0,96292.0,0.6412308]
[1739311074983,0.2067098,96293.0,96292.0,0.6412308]
[1739311075180,0.001,96298.0,96292.0,0.43352]
[1739311075380,0.2086995,96298.0,96297.0,0.2077012]
[1739311075586,0.2096995,96298.0,96297.0,0.2077012]
[1739311075986,0.2086995,96298.0,96297.0,0.2077012]
[1739311077193,0.2076995,96298.0,96297.0,0.2077012]
[1739311077689,0.2096995,96298.0,96297.0,0.2077012]
[1739311080288,0.002,96298.0,96297.0,0.2077012]
[1739311091002,0.002,96298.0,96297.0,0.2804212]
[1739311091892,0.002,96298.0,96297.0,0.2077012]
[1739311092095,0.002,96298.0,96297.0,0.2804212]
[1739311092402,0.209699,96298.0,96297.0,0.2804212]
[1739311092998,0.002,96298.0,96297.0,0.2804212]
[1739311094390,0.209699,96298.0,96297.0,0.2077012]
[1739311094585,0.002,96298.0,96290.0,0.00155762]
[1739311094794,0.2077141,96291.0,96290.0,0.00155762]
[1739311094986,0.1023,96297.0,96296.0,0.2077033]
[1739311097494,0.1033,96297.0,96296.0,0.2077033]
[1739311098690,0.0524,96297.0,96296.0,0.2077033]
[1739311098893,0.002,96297.0,96296.0,0.2077033]
[1739311099296,0.001,96297.0,96296.0,0.2077033]
[1739311099691,0.18602021,96298.0,96295.0,0.07268]
[1739311099897,0.18602021,96298.0,96297.0,0.2077012]
[1739311100498,0.00015577,96302.0,96301.0,0.2076926]
[1739311100699,0.00015577,96302.0,96301.0,0.5684926]
[1739311102800,0.00315577,96302.0,96301.0,0.5684926]
[1739311107797,7e-08,96302.0,96301.0,0.5684926]
[1739311108502,7e-08,96302.0,96301.0,2.0684926]
[1739311110008,0.00015577,96311.0,96310.0,0.2076732]
[1739311110307,0.00015577,96311.0,96310.0,0.6411532]
[1739311111506,0.00015577,96311.0,96310.0,0.6441532]
[1739311113710,0.00015577,96311.0,96310.0,0.6411532]
[1739311113902,0.00015577,96311.0,96310.0,0.6550213]
[1739311118107,0.00015577,96311.0,96310.0,0.6421532]
[1739311119713,0.00115577,96311.0,96310.0,0.6411532]
[1739311124423,0.00215577,96311.0,96310.0,0.6411532]
[1739311125917,0.00215577,96311.0,96310.0,0.6411132]
[1739311126108,0.00115577,96311.0,96310.0,0.6411132]
[1739311126318,0.00515577,96311.0,96310.0,0.6411132]
[1739311127011,0.00415577,96311.0,96310.0,0.6411132]
[1739311127212,0.00515577,96311.0,96310.0,0.6411132]
[1739311130326,7e-08,96311.0,96310.0,0.6411132]
[1739311130616,0.15560977,96328.0,96310.0,0.73344]
[1739311130817,8e-08,96337.0,96336.0,0.2076171]
[1739311131014,8e-08,96337.0,96336.0,2.1410171]
[1739311131211,8e-08,96337.0,96336.0,0.6410171]
[1739311132022,8e-08,96337.0,96336.0,0.4901171]
[1739311132923,0.207615,96337.0,96336.0,0.4901171]
[1739311133124,0.222615,96337.0,96336.0,0.4911171]
[1739311133317,0.222615,96337.0,96336.0,0.001]
[1739311133512,0.229615,96337.0,96336.0,0.001]
[1739311133719,0.022,96337.0,96336.0,0.2086171]
[1739311134623,0.022,96337.0,96336.0,0.001]
[1739311134818,0.3828,96337.0,96332.0,0.0726]
[1739311135015,0.2076236,96333.0,96332.0,0.0726]
[1739311136119,0.2076236,96333.0,96332.0,0.0736]
[1739311136326,0.2076236,96333.0,96332.0,0.2812258]
[1739311136522,0.3748,96337.0,96332.0,0.0736]
[1739311136722,0.006,96333.0,96332.0,0.2812258]
[1739311137219,0.006,96333.0,96332.0,0.2802258]
[1739311137425,0.021,96333.0,96332.0,0.2812258]
[1739311137619,0.015,96333.0,96332.0,0.2812258]
[1739311139217,0.021,96333.0,96332.0,0.2812258]
[1739311151127,0.00015577,96346.0,96332.0,0.0736]
[1739311151327,0.0501,96358.0,96357.0,0.2075719]
[1739311151532,0.0501,96358.0,96357.0,0.2801319]
[1739311153030,0.0651,96358.0,96357.0,0.2811319]
[1739311153931,0.0721,96358.0,96357.0,0.2821319]
[1739311162537,0.0721,96358.0,96357.0,0.2095719]
[1739311162741,0.0721,96358.0,96357.0,0.2820919]
[1739311180451,0.022,96358.0,96357.0,0.2820919]
[1739311181049,0.022,96358.0,96357.0,0.3333919]
[1739311181239,0.15529924,96366.0,96365.0,0.2075547]
[1739311181851,0.18633631,96377.0,96362.0,0.3608]
[1739311182154,0.3608,96391.0,96387.0,0.2075073]
[1739311182747,0.01402257,96389.0,96387.0,0.2075073]
[1739311183257,0.0015569,96389.0,96388.0,0.2075051]
[1739311184747,0.3608,96425.0,96389.0,0.0518754]
[1739311184948,0.30146973,96410.0,96401.0,0.3608]
[1739311185157,0.30146973,96410.0,96402.0,0.07248]
[1739311185356,0.30146973,96410.0,96409.0,0.2074599]
[1739311185563,0.06546963,96410.0,96409.0,0.2074599]
[1739311185855,0.3608,96411.0,96408.0,0.07248]
[1739311186050,0.3608,96411.0,96410.0,0.2074578]
[1739311186249,0.21767374,96412.0,96408.0,0.07248]
[1739311186250,0.003,96410.0,96408.0,0.07248]
[1739311186450,0.003,96410.0,96409.0,0.5682599]
[1739311186759,0.002,96410.0,96409.0,0.5682599]
[1739311186956,0.005,96410.0,96409.0,0.5692599]
[1739311187160,0.005,96410.0,96409.0,0.5692064]
[1739311187354,0.21767374,96412.0,96409.0,0.3608]
[1739311187653,0.005,96410.0,96409.0,0.5682599]
[1739311188248,0.003,96410.0,96409.0,0.5692599]
[1739311188852,0.003,96410.0,96409.0,0.6215599]
[1739311189654,0.27919095,96428.0,96409.0,0.4151]
[1739311189855,0.39331119,96438.0,96436.0,0.2074018]
[1739311190661,0.37279909,96437.0,96436.0,0.2074018]
[1739311190962,0.18591169,96438.0,96436.0,0.2074018]
[1739311191260,0.18591169,96438.0,96432.0,0.3608]
[1739311191261,0.0514,96459.0,96457.0,0.2073556]
[1739311191447,0.0514,96459.0,96457.0,0.07244]
[1739311191652,0.0501,96458.0,96457.0,0.07244]
[1739311193050,0.0531,96458.0,96457.0,0.07344]
[1739311193456,0.0531,96458.0,96457.0,0.07244]
[1739311193457,0.0521,96458.0,96457.0,0.07244]
[1739311193760,0.0551,96458.0,96457.0,0.07244]
[1739311194159,0.0541,96458.0,96457.0,0.07244]
[1739311195661,0.0551,96458.0,96457.0,0.07244]
[1739311196253,0.0541,96458.0,96457.0,0.07244]
[1739311196656,0.0541,96458.0,96457.0,0.2797967]
[1739311196858,0.2614545,96458.0,96457.0,0.07244]
[1739311197162,0.2594545,96458.0,96457.0,0.07244]
[1739311197364,0.2614545,96458.0,96457.0,0.07244]
[1739311198062,0.207361,96455.0,96454.0,0.2073627]
[1739311198252,0.207361,96455.0,96454.0,0.2797627]
[1739311198449,0.0541,96458.0,96457.0,0.2073567]
[1739311198659,0.0551,96458.0,96457.0,0.2073567]
[1739311199262,0.0521,96458.0,96457.0,0.2073567]
[1739311199466,0.0501,96458.0,96457.0,0.2073567]
[1739311199762,0.0521,96458.0,96457.0,0.2073567]
[1739311200265,0.2594545,96458.0,96457.0,0.2083567]
[1739311201068,0.2604545,96458.0,96457.0,0.2073567]
[1739311201757,0.0531,96458.0,96448.0,0.00015554]
[1739311201953,0.5681739,96449.0,96448.0,0.00015554]
[1739311202867,0.5681739,96449.0,96446.0,0.07236]
[1739311202868,0.3608,96449.0,96446.0,0.07236]
[1739311203166,0.2073782,96447.0,96446.0,0.07236]
[1739311203560,0.3608,96449.0,96448.0,0.002]
[1739311203765,0.2073808,96446.0,96427.0,0.2074202]
[1739311203962,0.0518554,96427.0,96407.0,0.3608]
[1739311204166,0.2074472,96415.0,96414.0,0.2074473]
[1739311204362,0.2074621,96408.0,96407.0,0.36095554]
[1739311204562,0.3,96408.0,96396.0,0.18504684]
[1739311204752,0.2075008,96390.0,96389.0,0.17264327]
[1739311204959,0.2075008,96390.0,96389.0,0.00516395]
[1739311205156,0.2075008,96390.0,96389.0,0.00364395]
[1739311205360,0.2075008,96390.0,96368.0,0.43546809]
[1739311205361,0.2075008,96390.0,96386.0,0.2075075]
[1739311205561,0.2075008,96390.0,96388.0,0.2075048]
[1739311206468,0.2075008,96390.0,96389.0,0.007]
[1739311206770,0.1925008,96390.0,96389.0,0.007]
[1739311207268,0.1945008,96390.0,96388.0,0.2075048]
[1739311207462,0.1945008,96390.0,96388.0,0.2085048]
[1739311208265,0.0517,96389.0,96388.0,0.2075048]
[1739311209765,0.0547,96389.0,96388.0,0.2075048]
[1739311210366,0.0547,96389.0,96388.0,0.2085048]
[1739311211074,0.0647,96389.0,96388.0,0.2085048]
[1739311211767,0.003,96389.0,96388.0,0.2075048]
[1739311211971,0.013,96389.0,96388.0,0.2808648]
[1739311212172,0.01,96389.0,96388.0,0.2808648]
[1739311212375,0.00015563,96398.0,96388.0,0.43416]
[1739311212565,0.00015563,96398.0,96397.0,0.2074858]
[1739311212873,0.00015563,96398.0,96397.0,0.5682858]
[1739311213275,3e-08,96398.0,96397.0,0.5682858]
[1739311214070,3e-08,96398.0,96397.0,0.6406458]
[1739311214777,0.0513,96419.0,96418.0,0.2074406]
[1739311216375,0.0513,96419.0,96418.0,0.2084406]
[1739311216869,0.0543,96419.0,96418.0,0.2094406]
[1739311218277,0.003,96419.0,96418.0,0.2094406]
[1739311219179,0.003,96419.0,96418.0,0.5702406]
[1739311220775,0.0001554,96428.0,96418.0,0.5702406]
[1739311220776,0.0001554,96428.0,96427.0,0.2074212]
[1739311220979,0.3608,96453.0,96427.0,0.3608]
[1739311220980,0.0494,96449.0,96427.0,0.3608]
[1739311221277,0.01203506,96449.0,96448.0,0.207376]
[1739311221480,0.1017,96476.0,96448.0,0.07236]
[1739311221680,0.1851895,96468.0,96463.0,0.2073438]
[1739311222479,0.37233419,96464.0,96463.0,0.2073438]
[1739311222978,0.3608,96464.0,96463.0,0.2073438]
[1739311223180,0.3618,96464.0,96463.0,0.2073438]
[1739311223894,0.0523,96476.0,96463.0,0.2073438]
[1739311223895,0.00052001,96486.0,96483.0,0.2073008]
[1739311224079,0.0519,96499.0,96483.0,0.2073008]
[1739311224277,0.12436256,96493.0,96483.0,0.2073008]
[1739311224471,0.2072949,96486.0,96483.0,0.2073008]
[1739311224783,0.01153655,96484.0,96479.0,0.3608]
[1739311224979,0.2073052,96481.0,96479.0,0.3608]
[1739311226084,0.2073052,96481.0,96479.0,0.3618]
[1739311226987,0.2073052,96481.0,96479.0,0.3628]
[1739311227788,0.2073052,96481.0,96479.0,0.002]
[1739311229687,0.2191465,96481.0,96479.0,0.002]
[1739311231077,0.2191469,96481.0,96479.0,0.2093089]
[1739311231284,0.2073056,96481.0,96479.0,0.2093089]
[1739311232590,0.2073056,96481.0,96479.0,0.002]
[1739311232789,0.2073056,96481.0,96480.0,0.2073073]
[1739311233588,0.01203394,96482.0,96479.0,0.002]
[1739311233785,0.2072817,96492.0,96491.0,0.2072804]
[1739311236090,0.2072817,96492.0,96491.0,0.2092804]
[1739311237782,0.0115923,96497.0,96496.0,0.2072729]
[1739311237986,0.0519,96499.0,96498.0,0.2072686]
[1739311238799,0.2591664,96499.0,96498.0,0.2072686]
[1739311239094,0.27113345,96499.0,96498.0,0.2082686]
[1739311239898,0.27113345,96499.0,96498.0,0.2092686]
[1739311247295,0.27113345,96499.0,96498.0,0.002]
[1739311248505,0.76764001,96520.0,96503.0,0.2072579]
[1739311248705,0.2072495,96507.0,96503.0,0.2072579]
[1739311249598,0.2072495,96507.0,96503.0,0.2082579]
[1739311250197,0.2072495,96507.0,96503.0,0.2092579]
[1739311250401,0.2072377,96513.0,96503.0,0.2092579]
[1739311251003,0.2072393,96512.0,96503.0,0.2092579]
[1739311252608,0.01157447,96506.0,96503.0,0.2092579]
[1739311254015,0.21882757,96506.0,96503.0,0.2092579]
[1739311254724,0.01157447,96506.0,96503.0,0.2092579]
[1739311255822,0.20881091,96504.0,96503.0,0.2092579]
[1739311258623,0.20881091,96504.0,96503.0,0.002]
[1739311260236,0.00155521,96504.0,96503.0,0.2092579]
[1739311261826,0.20881091,96504.0,96503.0,0.2092579]
[1739311268732,0.20885257,96504.0,96503.0,0.2092579]
[1739311268933,0.00159687,96504.0,96503.0,0.2092579]
[1739311275339,0.00159687,96504.0,96503.0,0.2072579]
[1739311276045,4.166e-05,96504.0,96503.0,0.2072579]
[1739311276843,0.2072216,96520.0,96519.0,0.2072177]
[1739311278341,0.2190566,96520.0,96519.0,0.2072177]
[1739311278645,0.2190566,96520.0,96519.0,0.2082177]
[1739311280140,0.011835,96520.0,96519.0,0.2082177]
[1739311280343,0.261212,96525.0,96519.0,0.2082177]
[1739311280344,0.261212,96525.0,96524.0,0.2072128]
[1739311280545,0.00052001,96529.0,96528.0,0.2072042]
[1739311280738,0.0557,96537.0,96536.0,0.207187]
[1739311281139,0.06734282,96537.0,96536.0,0.207187]
[1739311281543,0.27452772,96537.0,96536.0,0.207187]
[1739311282044,0.01164282,96537.0,96536.0,0.208187]
[1739311282250,0.2071745,96542.0,96541.0,0.2071763]
[1739311283147,0.01159739,96542.0,96541.0,0.2071763]
[1739311283446,0.01159739,96542.0,96536.0,0.002]
[1739311283447,0.0015544,96544.0,96543.0,0.207172]
[1739311283949,0.01178383,96544.0,96543.0,0.207172]
[1739311284148,0.00052001,96555.0,96548.0,0.2071613]
[1739311284444,0.3608,96560.0,96548.0,0.2793213]
[1739311284645,0.0515,96564.0,96556.0,0.2071441]
[1739311284849,0.0515,96564.0,96556.0,0.3608]
[1739311285051,0.06322514,96564.0,96554.0,0.3608]
[1739311285254,0.3608,96562.0,96548.0,0.07216]
[1739311285554,0.2071573,96550.0,96548.0,0.07316]
[1739311285850,0.2071573,96550.0,96548.0,0.07416]
[1739311286048,0.2071573,96550.0,96548.0,0.07216]
[1739311286450,0.3608,96562.0,96548.0,0.07216]
[1739311286652,0.2071338,96561.0,96550.0,0.12436256]
[1739311286952,0.2071338,96561.0,96560.0,0.3608]
[1739311288353,0.2071338,96561.0,96560.0,0.3618]
[1739311288555,0.2071338,96561.0,96560.0,0.3628]
[1739311288747,0.2071338,96561.0,96560.0,0.5699356]
[1739311289545,0.2071338,96561.0,96560.0,0.3628]
[1739311289752,0.2071338,96561.0,96560.0,0.002]
[1739311290550,0.06322514,96564.0,96560.0,0.3628]
[1739311290743,0.2071318,96562.0,96560.0,0.3628]
[1739311291047,0.2071318,96562.0,96561.0,0.2071334]
[1739311291446,0.06322514,96564.0,96563.0,0.2071291]
[1739311293162,0.27035214,96564.0,96563.0,0.2071291]
[1739311293956,0.27035214,96564.0,96563.0,0.2081291]
[1739311294551,0.01172514,96564.0,96563.0,0.2091291]
[1739311294752,0.2071218,96567.0,96566.0,0.2071227]
[1739311295658,0.3608,96576.0,96563.0,0.002]
[1739311295850,0.207127,96564.0,96563.0,0.002]
[1739311296051,0.207127,96564.0,96563.0,0.001]
[1739311296949,0.0517774,96572.0,96562.0,0.07212]
[1739311297150,0.2071111,96572.0,96571.0,0.2071098]
[1739311297652,0.2071206,96567.0,96566.0,0.001]
[1739311297954,0.207127,96564.0,96563.0,0.002]
[1739311298157,0.207127,96564.0,96563.0,0.001]
[1739311298650,0.3608,96567.0,96561.0,0.07212]
[1739311298955,0.5679206,96567.0,96566.0,0.001]
[1739311299359,0.2071377,96559.0,96558.0,0.3345586]
[1739311299557,0.3608,96567.0,96546.0,0.3608]
[1739311299558,0.2071399,96558.0,96554.0,0.2071475]
[1739311299759,0.2071399,96558.0,96557.0,0.07227538]
[1739311300554,0.2071399,96558.0,96557.0,0.00015538]
[1739311300555,0.5679399,96558.0,96557.0,0.00015538]
[1739311300962,0.2071635,96547.0,96546.0,0.3608]
[1739311301261,0.2071828,96538.0,96533.0,0.3608]
[1739311301453,0.2071828,96538.0,96529.0,0.07212]
[1739311301860,0.2072201,96521.0,96519.0,0.07212]
[1739311302364,0.2072236,96519.0,96518.0,0.3608]
[1739311305171,0.2072236,96519.0,96518.0,0.3618]
[1739311308276,0.2072236,96519.0,96518.0,0.001]
[1739311308775,0.01148344,96523.0,96522.0,0.2072171]
[1739311308977,0.2072142,96524.0,96522.0,0.2072171]
[1739311309177,0.21854991,96524.0,96522.0,0.2072171]
[1739311309476,0.01133571,96524.0,96522.0,0.2072171]
[1739311309673,0.207215,96523.0,96522.0,0.2072171]
[1739311310076,0.207215,96523.0,96522.0,0.2082171]
[1739311310273,0.00015454,96530.0,96529.0,0.2072021]
[1739311310576,0.00015454,96530.0,96529.0,0.5680021]
[1739311310776,0.0508,96545.0,96544.0,0.2071699]
[1739311310972,0.0508,96545.0,96544.0,0.5679699]
[1739311311373,0.0551,96559.0,96544.0,0.3608]
[1739311311566,0.2592402,96558.0,96555.0,0.2071459]
[1739311311965,0.0521,96558.0,96545.0,0.0533]
[1739311312168,0.0521,96558.0,96557.0,0.207142]
[1739311314179,0.0521,96558.0,96557.0,0.208142]
[1739311314368,0.0521,96558.0,96557.0,0.209142]
[1739311316376,0.2071381,96559.0,96557.0,0.209142]
[1739311316878,0.00155415,96560.0,96557.0,0.209142]
[1739311317075,0.2071399,96558.0,96557.0,0.209142]
[1739311317477,0.2071399,96558.0,96557.0,0.208142]
[1739311317681,0.2071399,96558.0,96557.0,0.209142]
[1739311318181,0.2071399,96558.0,96557.0,0.208142]
[1739311318379,0.2071399,96558.0,96557.0,0.002]
[1739311327182,0.00155415,96560.0,96559.0,0.2071377]
[1739311327485,0.20868975,96560.0,96559.0,0.2071377]
[1739311327875,0.20868975,96560.0,96557.0,0.002]
[1739311327876,0.2071399,96558.0,96557.0,0.002]
[1739311328280,0.2071399,96558.0,96557.0,0.001]
[1739311328487,0.2071399,96558.0,96557.0,0.208142]
[1739311329391,0.2071463,96555.0,96554.0,0.3608]
[1739311330789,0.2071463,96555.0,96554.0,0.3618]
[1739311331887,0.2071463,96555.0,96554.0,0.3628]
[1739311332284,0.07204,96559.0,96546.0,0.32017947]
[1739311332582,0.207172,96543.0,96537.0,0.00155368]
[1739311332778,0.207172,96543.0,96537.0,0.20873768]
[1739311332977,0.207172,96543.0,96538.0,0.2071817]
[1739311333690,0.207172,96543.0,96542.0,0.00115538]
[1739311334987,0.568972,96543.0,96542.0,0.00215538]
[1739311335191,0.3618,96543.0,96522.0,0.3608]
[1739311335390,0.2072364,96513.0,96512.0,0.25378608]
[1739311335592,0.3608,96534.0,96512.0,0.25378608]
[1739311335783,0.2072278,96518.0,96517.0,0.2072265]
[1739311336287,0.0546,96524.0,96522.0,0.207215]
[1739311336288,0.2072162,96523.0,96522.0,0.207215]
[1739311336490,0.2072162,96523.0,96522.0,0.208215]
[1739311337092,0.2072162,96523.0,96522.0,0.209215]
[1739311337986,0.2072162,96523.0,96522.0,0.208215]
[1739311338191,0.21844451,96523.0,96522.0,0.208215]
[1739311338788,0.22144451,96523.0,96522.0,0.209215]
[1739311339286,0.22344451,96523.0,96522.0,0.209215]
[1739311350503,0.00015538,96527.0,96522.0,0.07404]
[1739311350695,0.2619714,96545.0,96544.0,0.2071699]
[1739311351093,0.0548,96545.0,96544.0,0.2071699]
[1739311351397,0.76672001,96549.0,96548.0,0.2071613]
[1739311351596,0.2071464,96555.0,96548.0,0.5679613]
[1739311351803,0.2071464,96555.0,96554.0,0.2071485]
[1739311353104,0.2186575,96555.0,96554.0,0.2071485]
[1739311353397,0.0115111,96555.0,96554.0,0.2081485]
[1739311353597,0.2071463,96555.0,96554.0,0.2081485]
[1739311354403,0.2071463,96555.0,96554.0,0.2091485]
[1739311360001,0.0115212,96558.0,96554.0,0.002]
[1739311360207,0.3608,96574.0,96554.0,0.002]
[1739311360208,0.3608,96574.0,96573.0,0.2071077]
[1739311360905,0.37189373,96574.0,96573.0,0.2071077]
[1739311361297,0.21819933,96574.0,96573.0,0.2071077]
[1739311362102,0.21819933,96574.0,96573.0,0.2081077]
[1739311362906,0.21819933,96574.0,96573.0,0.2091077]
[1739311364208,0.57899933,96574.0,96573.0,0.2091077]
[1739311365105,0.21819933,96574.0,96573.0,0.2091077]
[1739311371109,0.21819933,96574.0,96573.0,0.002]
[1739311374304,0.21819933,96574.0,96573.0,0.2091077]
[1739311377618,0.0548,96586.0,96585.0,0.207082]
[1739311378705,0.2618798,96586.0,96585.0,0.208082]
[1739311378907,0.27314674,96586.0,96585.0,0.209082]
[1739311380006,0.27314674,96586.0,96585.0,0.002]
[1739311380805,0.63394674,96586.0,96585.0,0.002]
[1739311381014,0.63394674,96586.0,96585.0,0.01028]
[1739311381212,0.42686694,96586.0,96555.0,0.1675]
[1739311381414,0.3608,96574.0,96555.0,0.1298]
[1739311381719,0.2071442,96556.0,96555.0,0.072]